bitfinex/quotes_SOLUSD_20251009
["timestamp","ask_amount","ask_price","bid_price","bid_amount"]
[1760002568888,1.37429376,221.78,221.73,31.92]
[1760002569192,134.8,221.8,221.73,31.92]
[1760002569193,0.68,221.77,221.73,50.47999999]
[1760002569502,15.78069344,221.79,221.75,18.55999999]
[1760002569503,0.68,221.76,221.75,18.55999999]
[1760002569686,0.68,221.76,221.73,50.47999999]
[1760002570005,0.68,221.75,221.73,31.92]
[1760002570207,0.68,221.77,221.73,31.92]
[1760002570396,0.68,221.76,221.75,18.55999999]
[1760002570709,5.18876955,221.79,221.75,50.47999999]
[1760002570886,0.68,221.78,221.77,18.55999999]
[1760002571391,5.18897285,221.78,221.77,18.55999999]
[1760002571592,5.18897285,221.78,221.75,50.47999999]
[1760002571790,0.68,221.77,221.75,50.47999999]
[1760002572103,0.68,221.76,221.75,50.47999999]
[1760002573006,0.68,221.76,221.74,31.92]
[1760002573185,4.50897285,221.78,221.75,18.55999999]
[1760002573504,5.18897285,221.78,221.75,18.55999999]
[1760002573881,4.50897285,221.78,221.75,18.55999999]
[1760002574399,4.50897285,221.78,221.76,31.92]
[1760002574780,0.68,221.77,221.76,31.92]
[1760002576211,5.18917617,221.77,221.76,31.92]
[1760002576903,0.68,221.77,221.76,31.92]
[1760002577112,5.18897133,221.79,221.76,31.92]
[1760002577302,0.68,221.78,221.76,31.92]
[1760002577909,5.18917581,221.78,221.76,31.92]
[1760002578102,0.68,221.77,221.76,31.92]
[1760002578405,4.50917581,221.78,221.76,31.92]
[1760002578602,5.18917581,221.78,221.76,31.92]
[1760002580221,4.50876955,221.79,221.76,31.92]
[1760002580416,0.68,221.78,221.76,31.92]
[1760002581412,0.68,221.77,221.76,31.92]
[1760002582306,5.18917617,221.77,221.76,31.92]
[1760002582613,16.4621166,221.77,221.74,31.92]
[1760002582822,2.05429376,221.76,221.74,31.92]
[1760002583132,2.05429376,221.76,221.73,18.55999999]
[1760002583293,0.68,221.75,221.7,18.55999999]
[1760002583614,25.98917617,221.77,221.72,18.55999999]
[1760002583821,25.98917617,221.77,221.73,0.71]
[1760002584035,25.98917617,221.77,221.72,50.47999999]
[1760002584189,5.18955739,221.76,221.72,50.47999999]
[1760002584819,0.68,221.75,221.72,50.47999999]
[1760002585018,0.68,221.74,221.72,31.92]
[1760002585192,0.72,221.73,221.72,31.92]
[1760002585504,4.50955739,221.76,221.72,32.58]
[1760002585705,4.50955739,221.76,221.73,0.66]
[1760002585905,5.22955739,221.76,221.72,50.47999999]
[1760002586112,0.72,221.75,221.72,50.47999999]
[1760002586488,4.50978623,221.74,221.72,50.47999999]
[1760002586688,5.22978623,221.74,221.72,50.47999999]
[1760002586889,0.72,221.73,221.71,31.92]
[1760002587305,1.37429376,221.75,221.71,32.58]
[1760002587625,0.72,221.74,221.72,18.55999999]
[1760002587793,0.72,221.74,221.71,31.92]
[1760002588697,4.50998962,221.73,221.72,18.55999999]
[1760002589123,4.50981824,221.74,221.72,18.55999999]
[1760002589623,43.19216997,221.79,221.72,19.21999999]
[1760002589817,1.37429376,221.77,221.72,18.55999999]
[1760002590003,135.52,221.76,221.72,18.55999999]
[1760002590203,134.8,221.76,221.72,18.55999999]
[1760002590410,0.72,221.75,221.72,18.55999999]
[1760002591013,4.50958286,221.75,221.72,18.55999999]
[1760002591223,4.50958286,221.75,221.72,19.21999999]
[1760002591728,139.30938936,221.76,221.72,19.21999999]
[1760002591929,2.09429376,221.75,221.71,31.92]
[1760002592229,0.72,221.74,221.71,31.92]
[1760002592523,2.09429376,221.73,221.71,18.55999999]
[1760002592700,2.09429376,221.73,221.69,50.47999999]
[1760002592897,1.37429376,221.73,221.69,50.47999999]
[1760002593097,4.51039646,221.71,221.69,50.47999999]
[1760002593312,5.23039646,221.71,221.69,50.47999999]
[1760002593524,4.51039646,221.71,221.69,50.47999999]
[1760002593712,5.23039646,221.71,221.69,50.47999999]
[1760002594320,4.51039646,221.71,221.69,50.47999999]
[1760002594526,4.51019303,221.72,221.69,50.47999999]
[1760002594728,5.23019303,221.72,221.69,50.47999999]
[1760002595421,4.51019303,221.72,221.71,18.55999999]
[1760002596420,5.23019303,221.72,221.69,31.92]
[1760002596728,4.51019303,221.72,221.69,31.92]
[1760002596929,134.8,221.71,221.69,31.92]
[1760002597133,0.72,221.7,221.68,18.55999999]
[1760002597335,0.72,221.69,221.68,18.55999999]
[1760002597537,1.37429376,221.7,221.68,18.55999999]
[1760002597828,2.09429376,221.7,221.67,31.92]
[1760002598529,4.51080337,221.69,221.67,31.92]
[1760002599332,5.23080337,221.69,221.67,31.92]
[1760002599561,5.23080337,221.69,221.66,18.55999999]
[1760002600051,134.8,221.68,221.66,18.55999999]
[1760002600752,151.30923624,221.67,221.63,0.1]
[1760002600949,1.37429376,221.64,221.63,0.1]
[1760002601134,22.17429376,221.64,221.63,0.1]
[1760002601450,22.89429376,221.64,221.63,0.1]
[1760002601748,20.8,221.64,221.63,0.1]
[1760002601949,134.8,221.66,221.63,19.31999999]
[1760002602152,134.8,221.66,221.64,0.66]
[1760002602547,134.8,221.66,221.65,18.55999999]
[1760002602742,1.37429376,221.73,221.65,52.51429375]
[1760002602947,4.50998962,221.73,221.68,18.55999999]
[1760002603147,4.50998962,221.73,221.69,0.66]
[1760002603351,4.50998962,221.73,221.7,19.21999999]
[1760002604143,4.50998962,221.73,221.7,18.55999999]
[1760002605028,4.50998962,221.73,221.7,19.27999999]
[1760002605445,4.50998962,221.73,221.71,0.72]
[1760002606443,4.50986113,221.74,221.71,0.72]
[1760002606751,134.8,221.75,221.72,0.72]
[1760002606951,134.8,221.75,221.74,18.55999999]
[1760002607156,139.30958286,221.75,221.74,18.55999999]
[1760002607562,134.8,221.75,221.74,18.55999999]
[1760002607743,37.80311693,221.79,221.74,19.27999999]
[1760002608251,6.55311693,221.79,221.75,0.72]
[1760002608430,4.50882317,221.79,221.74,18.55999999]
[1760002608626,4.50882317,221.79,221.78,18.55999999]
[1760002609030,33.96429376,221.82,221.78,19.27999999]
[1760002609031,4.50836301,221.81,221.78,19.27999999]
[1760002609257,7.8104168,221.83,221.79,0.72]
[1760002609560,20.8,221.83,221.8,0.72]
[1760002609739,21.47,221.83,221.78,19.27999999]
[1760002609941,2.04429376,221.82,221.78,18.55999999]
[1760002610237,22.17429376,221.83,221.79,0.72]
[1760002610436,0.67,221.82,221.78,18.55999999]
[1760002610778,1.37429376,221.81,221.78,18.55999999]
[1760002611445,1.37429376,221.81,221.78,19.27999999]
[1760002612045,5.88282597,221.81,221.78,19.27999999]
[1760002612249,4.50853221,221.81,221.78,19.27999999]
[1760002612445,1.37429376,221.79,221.78,18.55999999]
[1760002612655,2.04429376,221.79,221.77,18.55999999]
[1760002612960,2.04429376,221.78,221.77,18.55999999]
[1760002613166,1.37429376,221.78,221.75,19.27999999]
[1760002613459,5.88282597,221.81,221.77,18.55999999]
[1760002613657,5.88282597,221.81,221.77,19.27999999]
[1760002614044,4.50853221,221.81,221.79,18.55999999]
[1760002614257,1.37429376,221.82,221.79,19.27999999]
[1760002614961,4.50795654,221.83,221.8,0.72]
[1760002615459,25.30795654,221.83,221.8,0.65]
[1760002616137,4.50795654,221.83,221.8,0.65]
[1760002617057,4.50795654,221.83,221.81,0.65]
[1760002617645,4.50756103,221.85,221.82,0.65]
[1760002617845,4.50756103,221.85,221.81,18.55999999]
[1760002618041,5.19756103,221.85,221.81,18.55999999]
[1760002618300,1.37429376,221.84,221.81,18.55999999]
[1760002619263,4.50795654,221.83,221.81,18.55999999]
[1760002619453,4.50795654,221.83,221.81,19.20999999]
[1760002620784,0.69,221.85,221.81,19.20999999]
[1760002620941,2.06429376,221.85,221.81,19.20999999]
[1760002621142,4.50776935,221.84,221.81,18.55999999]
[1760002621344,4.50776935,221.84,221.81,19.20999999]
[1760002622888,4.50755014,221.85,221.81,18.55999999]
[1760002623060,6.5718439,221.85,221.81,19.20999999]
[1760002624579,4.50795654,221.83,221.81,18.55999999]
[1760002625457,4.50777519,221.84,221.82,0.65]
[1760002626361,5.19777519,221.84,221.81,18.55999999]
[1760002628081,7.34488323,221.84,221.81,18.55999999]
[1760002628885,0.69,221.83,221.81,18.55999999]
[1760002629063,18.61426656,221.84,221.81,18.55999999]
[1760002629866,17.92426656,221.84,221.81,18.55999999]
[1760002630674,18.61426656,221.84,221.81,18.55999999]
[1760002634086,10.87647521,221.81,221.77,18.55999999]
[1760002634293,2.14710804,221.78,221.77,18.55999999]
[1760002635360,20.8,221.82,221.77,19.20999999]
[1760002635692,22.94710804,221.82,221.78,0.65]
[1760002635863,2.14710804,221.82,221.79,0.65]
[1760002636065,2.14710804,221.82,221.79,19.20999999]
[1760002636264,6.65538685,221.82,221.79,18.55999999]
[1760002636477,134.8,221.83,221.81,18.55999999]
[1760002636690,139.30802119,221.83,221.81,18.55999999]
[1760002637481,139.30802119,221.83,221.81,19.20999999]
[1760002637681,139.99802119,221.83,221.81,18.55999999]
[1760002638088,139.30802119,221.83,221.81,18.55999999]
[1760002639394,139.99802119,221.83,221.81,18.55999999]
[1760002639597,139.30802119,221.83,221.81,19.20999999]
[1760002639777,139.30802119,221.83,221.82,0.65]
[1760002640190,134.8,221.83,221.82,0.65]
[1760002640381,1e-08,221.87,221.83,18.55999999]
[1760002640678,1e-08,221.87,221.82,32.55]
[1760002640679,1e-08,221.87,221.86,18.55999999]
[1760002641078,1e-08,221.87,221.86,19.20999999]
[1760002641285,1e-08,221.87,221.86,23.71734696]
[1760002642877,1e-08,221.87,221.86,19.20999999]
[1760002643280,1e-08,221.87,221.86,21.35710803]
[1760002645289,1e-08,221.87,221.86,25.864455]
[1760002645691,1e-08,221.87,221.86,57.744455]
[1760002646594,1e-08,221.87,221.86,55.59734696]
[1760002646878,1e-08,221.87,221.86,57.744455]
[1760002652107,1e-08,221.87,221.86,25.864455]
[1760002652412,1e-08,221.87,221.86,57.744455]
[1760002655391,1e-08,221.87,221.86,59.89156304]
[1760002656992,1e-08,221.87,221.86,70.76803825]
[1760002657808,1e-08,221.87,221.86,84.29770203]
[1760002658810,1e-08,221.87,221.86,37.24701074]
[1760002659112,1e-08,221.87,221.86,57.724455]
[1760002662797,1e-08,221.87,221.86,70.74803825]
[1760002663189,1e-08,221.87,221.86,84.27770203]
[1760002665805,0.72,221.96,221.9,31.67647521]
[1760002666002,0.72,221.96,221.95,20.70710803]
[1760002666204,0.72,221.96,221.95,52.56710803]
[1760002666399,4.50453656,222.0,221.95,52.56710803]
[1760002666611,4.50453656,222.0,221.97,18.55999999]
[1760002666612,0.72,221.98,221.97,18.55999999]
[1760002666813,0.72,221.98,221.97,52.56710803]
[1760002667512,0.72,221.98,221.97,50.41999999]
[1760002667726,0.72,221.98,221.97,52.56710803]
[1760002670714,0.72,222.0,221.99,18.55999999]
[1760002671015,0.72,222.0,221.99,50.41999999]
[1760002673507,0.72,222.0,221.99,18.55999999]
[1760002673719,5.2245045,222.0,221.99,50.41999999]
[1760002674514,0.72,222.0,221.99,50.41999999]
[1760002676210,4.50391857,222.03,222.02,18.55999999]
[1760002676413,4.5037227,222.04,222.02,50.39999999]
[1760002676621,139.30351185,222.05,222.02,50.39999999]
[1760002676796,0.67,222.04,222.02,50.39999999]
[1760002677001,0.67,222.03,222.02,50.39999999]
[1760002677922,5.17389586,222.03,222.02,50.39999999]
[1760002678347,5.17389586,222.03,222.02,18.55999999]
[1760002678531,5.17389586,222.03,222.02,50.39999999]
[1760002679204,5.17389586,222.03,222.02,18.55999999]
[1760002679407,5.17389586,222.03,222.02,50.39999999]
[1760002679608,5.17389586,222.03,222.02,18.55999999]
[1760002679916,5.17389586,222.03,222.02,50.39999999]
[1760002680909,5.17389586,222.03,222.02,18.55999999]
[1760002681119,5.17389586,222.03,222.0,18.55999999]
[1760002681320,2.14710804,222.01,221.99,31.84]
[1760002681638,0.67,222.0,221.99,31.84]
[1760002681830,5.1745045,222.0,221.99,31.84]
[1760002683335,5.1745045,222.0,221.96,18.55999999]
[1760002683520,5.1745045,222.0,221.88,13.52844355]
[1760002683521,2.14710804,221.97,221.93,31.84]
[1760002683719,0.67,221.96,221.93,31.84]
[1760002683928,4.50572226,221.94,221.93,31.84]
[1760002684235,0.67,221.96,221.94,18.55999999]
[1760002684416,0.67,221.96,221.95,31.84]
[1760002684619,137.61710804,221.99,221.95,31.84]
[1760002684936,134.8,221.99,221.97,18.55999999]
[1760002685234,134.8,221.99,221.98,31.84]
[1760002685434,134.8,222.05,222.01,18.55999999]
[1760002685636,0.67,222.04,222.02,31.84]
[1760002685848,0.67,222.03,222.02,31.84]
[1760002686011,150.56224536,222.05,222.02,31.84]
[1760002686217,0.67,222.04,222.02,31.84]
[1760002686621,134.8,222.05,222.03,0.71]
[1760002686819,0.2,222.06,222.04,51.10999999]
[1760002687122,0.2,222.06,222.05,31.84]
[1760002687734,0.2,222.06,222.05,32.55]
[1760002688135,0.2,222.06,222.05,37.0534902]
[1760002688542,0.2,222.06,222.05,39.20059824]
[1760002689818,0.2,222.06,222.05,38.42388534]
[1760002691731,0.2,222.06,222.05,0.71]
[1760002691943,0.2,222.06,222.05,38.42388534]
[1760002693544,3.89186317,222.14,222.05,38.42388534]
[1760002693856,3.89186317,222.14,222.13,18.55999999]
[1760002694138,3.89186317,222.14,222.13,31.82]
[1760002694330,3.89186317,222.14,222.13,50.37999999]
[1760002694645,0.67,222.14,222.13,50.37999999]
[1760002695252,4.50126035,222.16,222.13,50.37999999]
[1760002696319,5.17126035,222.16,222.13,50.37999999]
[1760002696724,2.04039514,222.15,222.13,18.55999999]
[1760002696927,0.67,222.14,222.11,18.55999999]
[1760002697123,0.67,222.13,222.11,18.55999999]
[1760002697329,0.67,222.13,222.12,31.82]
[1760002697530,17.12480637,222.16,222.12,31.82]
[1760002697722,0.67,222.15,222.13,50.37999999]
[1760002698145,0.67,222.14,222.13,31.82]
[1760002698737,5.17166561,222.14,222.13,31.82]
[1760002699136,4.50166561,222.14,222.13,31.82]
[1760002699335,4.50166561,222.14,222.13,18.55999999]
[1760002699538,4.50166561,222.14,222.13,50.37999999]
[1760002700442,12.62354602,222.16,222.13,50.37999999]
[1760002700443,4.50146297,222.15,222.13,50.37999999]
[1760002700947,4.50130126,222.16,222.13,50.37999999]
[1760002702251,22.17039514,222.14,222.07,18.55999999]
[1760002702463,4.50267909,222.09,222.04,18.55999999]
[1760002702636,4.50267909,222.09,222.05,18.02]
[1760002702637,2.04039514,222.08,222.05,18.02]
[1760002702830,0.67,222.07,222.02,18.55999999]
[1760002703152,1.37039514,222.04,222.02,50.37999999]
[1760002703450,21.47,222.06,222.02,50.37999999]
[1760002703650,1.37039514,222.05,222.02,50.37999999]
[1760002703965,2.04039514,222.05,222.0,18.55999999]
[1760002704165,26.63585203,222.09,222.01,31.82]
[1760002704365,1.37039514,222.07,222.03,18.55999999]
[1760002704660,4.50328739,222.06,222.03,18.55999999]
[1760002705760,4.50328739,222.06,222.04,31.82]
[1760002705956,1.37039514,222.11,222.04,31.82]
[1760002706163,1.37039514,222.11,222.07,18.55999999]
[1760002706350,4.50247636,222.1,222.07,18.55999999]
[1760002708380,4.50247636,222.1,222.07,50.37999999]
[1760002708665,4.50227364,222.11,222.07,50.37999999]
[1760002709364,0.68,222.1,222.07,50.37999999]
[1760002709863,4.50227364,222.11,222.07,50.37999999]
[1760002709864,134.8,222.09,222.07,18.55999999]
[1760002710043,134.8,222.09,221.97,11.26246397]
[1760002710044,11.55647521,222.08,222.0,18.55999999]
[1760002710244,1.37039514,222.06,222.01,31.82]
[1760002710443,0.68,222.05,222.01,31.82]
[1760002710942,5.18369302,222.04,222.0,18.55999999]
[1760002711246,5.18369302,222.04,222.0,50.37999999]
[1760002711448,5.18369302,222.04,222.0,18.55999999]
[1760002711647,5.18369302,222.04,222.0,50.37999999]
[1760002712642,4.50369302,222.04,222.0,50.37999999]
[1760002712849,5.87368253,222.06,222.0,50.37999999]
[1760002713051,0.68,222.05,222.0,18.55999999]
[1760002713352,0.68,222.05,222.0,50.37999999]
[1760002713693,10.87647521,222.02,221.95,18.55999999]
[1760002713990,1.37039514,221.99,221.95,18.55999999]
[1760002714162,10.87647521,222.02,221.95,18.55999999]
[1760002714479,1.37039514,222.0,221.95,18.55999999]
[1760002714686,2.05039514,222.0,221.95,18.55999999]
[1760002715040,4.50470741,221.99,221.95,18.55999999]
[1760002715245,16.44647595,221.99,221.95,18.55999999]
[1760002715478,15.76647595,221.99,221.95,18.55999999]
[1760002716077,16.44647595,221.99,221.97,3.3]
[1760002716467,5.18470741,221.99,221.97,3.3]
[1760002716653,5.87510255,221.99,221.97,3.3]
[1760002718479,6.55510255,221.99,221.97,3.3]
[1760002719068,5.87510255,221.99,221.97,3.3]
[1760002719265,6.55510255,221.99,221.97,3.3]
[1760002720062,11.26140753,222.0,221.97,3.3]
[1760002720272,11.26140753,222.0,221.97,3.96]
[1760002721083,145.67647521,222.02,222.0,18.55999999]
[1760002721084,134.8,222.02,222.0,18.55999999]
[1760002721265,134.8,222.02,221.99,1.37039514]
[1760002721266,4.50308461,222.07,222.02,18.55999999]
[1760002721462,139.30288804,222.08,222.04,18.55999999]
[1760002721651,25.30261167,222.1,222.05,0.66]
[1760002721977,4.50261167,222.1,222.06,18.55999999]
[1760002722170,37.23742333,222.12,222.07,31.82]
[1760002722348,1.37039514,222.13,222.07,31.82]
[1760002722349,4.50200311,222.13,222.08,0.66]
[1760002722552,4.50200311,222.13,222.09,19.21999999]
[1760002723156,4.50200311,222.13,222.1,0.66]
[1760002723390,4.50200311,222.13,222.11,0.66]
[1760002723779,5.87202415,222.15,222.11,19.21999999]
[1760002724378,5.87202415,222.15,221.66,140.0]
[1760002724379,10.87647521,222.12,222.05,50.37999999]
[1760002724555,2.09039514,222.11,222.05,50.37999999]
[1760002724957,2.09039514,222.11,222.02,51.07999999]
[1760002724958,1.37039514,222.09,222.02,51.07999999]
[1760002725160,1.37039514,222.13,222.08,18.55999999]
[1760002725356,1.37039514,222.11,222.08,18.55999999]
[1760002725560,2.09039514,222.11,222.08,18.55999999]
[1760002726353,4.50247636,222.1,222.08,18.55999999]
[1760002726963,4.50247636,222.1,222.03,1.37039514]
[1760002726964,2.09039514,222.09,222.06,18.55999999]
[1760002727279,10.87647521,222.06,222.02,18.55999999]
[1760002727453,1.37039514,222.04,221.99,32.62]
[1760002727957,1.37039514,222.04,221.99,0.7]
[1760002728173,15.76363553,222.03,221.98,50.47999999]
[1760002728494,2.09039514,222.02,221.98,18.55999999]
[1760002728795,0.72,222.01,221.96,51.17999999]
[1760002729082,1.37039514,222.0,221.98,3.4]
[1760002729663,0.72,221.99,221.92,18.55999999]
[1760002729873,0.72,221.99,221.95,18.55999999]
[1760002729874,1.37039514,221.97,221.95,18.55999999]
[1760002730079,20.8,222.0,221.96,0.7]
[1760002730255,15.76363553,222.03,221.98,18.55999999]
[1760002730256,20.8,222.03,221.98,18.55999999]
[1760002730453,20.8,222.03,222.0,18.55999999]
[1760002730679,1.37039514,222.02,221.98,18.55999999]
[1760002730895,2.09039514,222.02,221.98,18.55999999]
[1760002731076,20.8,222.03,222.0,18.55999999]
[1760002731274,20.8,222.03,222.0,19.25999999]
[1760002731859,24.17765542,222.03,222.0,19.25999999]
[1760002732264,4.50409872,222.02,222.0,19.25999999]
[1760002732470,4.50409872,222.02,222.0,18.55999999]
[1760002732686,4.50409872,222.02,221.98,18.55999999]
[1760002733059,3.37765542,222.01,221.98,18.55999999]
[1760002733261,3.37765542,221.99,221.94,18.55999999]
[1760002733462,3.37765542,221.99,221.94,0.7]
[1760002733884,3.37765542,221.99,221.95,18.55999999]
[1760002734090,4.09765542,221.99,221.95,1.8]
[1760002734265,4.50491035,221.98,221.95,1.8]
[1760002734654,4.50491035,221.98,221.95,20.35999999]
[1760002736562,4.50491035,221.98,221.95,18.55999999]
[1760002737690,4.50491035,221.98,221.95,19.21999999]
[1760002739082,4.50491035,221.98,221.95,18.55999999]
[1760002739465,16.44718623,221.98,221.93,18.55999999]
[1760002739665,16.44718623,221.98,221.95,18.55999999]
[1760002739867,15.76718623,221.98,221.95,18.55999999]
[1760002740176,20.8,221.99,221.96,0.66]
[1760002740377,3.37765542,222.0,221.98,18.55999999]
[1760002740778,3.37765542,222.0,221.95,18.55999999]
[1760002740966,3.37765542,221.97,221.95,19.21999999]
[1760002741398,3.37765542,221.97,221.93,51.21999999]
[1760002741707,4.50531627,221.96,221.91,0.66]
[1760002741868,5.18531627,221.96,221.92,18.55999999]
[1760002742067,3.37765542,221.95,221.92,18.55999999]
[1760002743476,4.50572226,221.94,221.92,18.55999999]
[1760002743896,10.87647521,221.92,221.89,18.55999999]
[1760002744197,10.87647521,221.92,221.85,0.66]
[1760002744198,3.37765542,221.9,221.85,0.66]
[1760002744376,3.37765542,221.88,221.84,0.1]
[1760002744576,3.37765542,221.88,221.85,0.66]
[1760002744772,4.05765542,221.88,221.84,0.1]
[1760002745399,20.8,221.89,221.84,0.1]
[1760002745400,3.37765542,221.86,221.84,0.1]
[1760002745610,36.18402535,221.85,221.84,0.1]
[1760002745781,36.86402535,221.85,221.84,0.1]
[1760002746976,25.30755014,221.85,221.84,0.1]
[1760002747581,14.64568156,221.87,221.84,0.1]
[1760002747582,4.50734697,221.86,221.84,0.1]
[1760002747892,3.37765542,221.85,221.84,0.1]
[1760002748505,4.50734697,221.86,221.84,0.1]
[1760002748704,3.37765542,221.85,221.84,0.1]
[1760002749786,7.88520556,221.85,221.84,0.1]
[1760002749991,9.82394136,221.85,221.84,0.1]
[1760002750387,4.50755014,221.85,221.84,0.1]
[1760002750707,5.31639122,221.86,221.84,0.1]
[1760002750888,4.50732822,221.87,221.84,0.76]
[1760002751204,9.82371944,221.87,221.84,0.1]
[1760002751388,21.08997272,221.89,221.85,0.66]
[1760002751589,21.76997272,221.89,221.86,18.55999999]
[1760002752095,134.8,221.88,221.87,0.66]
[1760002752824,134.8,221.88,221.87,1.96]
[1760002754613,134.8,221.88,221.87,1.3]
[1760002755714,139.30694068,221.88,221.87,1.3]
[1760002756592,134.8,221.88,221.87,1.3]
[1760002758108,134.8,221.88,221.87,1.96]
[1760002759794,139.30694068,221.88,221.87,1.3]
[1760002760000,145.3033319,221.88,221.84,0.1]
[1760002760213,0.68,221.87,221.84,0.1]
[1760002761208,134.8,221.88,221.84,0.1]
[1760002761405,134.8,221.88,221.87,18.55999999]
[1760002764118,139.30694068,221.88,221.87,18.55999999]
[1760002764500,134.8,221.88,221.87,18.55999999]
[1760002767123,61.21227027,222.47,221.87,23.74714381]
[1760002767124,4.50616968,221.92,221.87,23.74714381]
[1760002767324,134.8,221.93,221.92,18.55999999]
[1760002772213,134.8,221.93,221.92,19.35999999]
[1760002776944,134.8,221.93,221.92,20.03999999]
[1760002777143,134.8,221.93,221.92,19.35999999]
[1760002784243,135.46,221.93,221.92,19.35999999]
[1760002787938,134.8,221.93,221.92,19.35999999]
[1760002791458,134.8,221.93,221.92,20.04999999]
[1760002794064,134.8,221.93,221.92,51.96999999]
[1760002796432,134.8,221.93,221.92,20.04999999]
[1760002796637,134.8,221.93,221.92,51.94999999]
[1760002797037,134.8,221.93,221.92,51.25999999]
[1760002797842,134.8,221.93,221.92,19.35999999]
[1760002798031,134.8,221.93,221.92,20.04999999]
[1760002798237,134.8,221.93,221.92,51.92999999]
[1760002798437,134.8,221.93,221.92,20.04999999]
[1760002798637,134.8,221.93,221.92,51.92999999]
[1760002798846,134.8,221.93,221.92,20.04999999]
[1760002799142,134.8,221.93,221.92,56.43612832]
[1760002800755,134.8,221.93,221.92,58.58066422]
[1760002802254,134.8,222.01,221.98,18.55999999]
[1760002802457,0.66,222.01,222.0,18.55999999]
[1760002802644,5.1643016,222.01,221.98,18.55999999]
[1760002802844,0.66,222.0,221.98,18.55999999]
[1760002803151,0.66,221.99,221.98,18.55999999]
[1760002804074,34.48101111,221.99,221.96,18.55999999]
[1760002804370,34.48101111,221.99,221.91,18.55999999]
[1760002804371,10.87647521,221.94,221.91,18.55999999]
[1760002804540,10.87647521,221.92,221.84,18.65999999]
[1760002804743,33.82101111,221.85,221.79,18.55999999]
[1760002804946,2.1445359,221.83,221.79,18.55999999]
[1760002805156,2.1445359,221.81,221.79,18.55999999]
[1760002805460,0.66,221.8,221.79,18.55999999]
[1760002807150,16.04504148,221.8,221.79,18.55999999]
[1760002807349,50.12957738,221.8,221.78,18.55999999]
[1760002807658,2.8045359,221.79,221.78,18.55999999]
[1760002808862,7.31330545,221.79,221.78,18.55999999]
[1760002809839,18.58522934,221.79,221.74,18.55999999]
[1760002810043,2.1445359,221.76,221.74,18.55999999]
[1760002810244,2.8045359,221.76,221.74,18.55999999]
[1760002810771,2.1445359,221.76,221.74,18.55999999]
[1760002810975,0.66,221.75,221.74,18.55999999]
[1760002811758,2.1445359,221.76,221.74,18.55999999]
[1760002811942,2.0351843,221.76,221.72,0.1]
[1760002812146,2.0351843,221.76,221.74,18.55999999]
[1760002813056,5.88461381,221.76,221.74,18.55999999]
[1760002813257,0.66,221.75,221.72,0.1]
[1760002813574,2.0351843,221.74,221.72,0.1]
[1760002813943,0.66,221.73,221.72,0.1]
[1760002814148,11.53647521,221.73,221.72,0.1]
[1760002815065,16.04646483,221.73,221.72,0.1]
[1760002816548,5.05494942,221.87,221.72,0.1]
[1760002816746,10.10989884,221.96,221.9,18.65999999]
[1760002816747,3.78184151,221.91,221.9,18.65999999]
[1760002816954,0.66,221.97,221.93,18.65999999]
[1760002817183,0.66,221.96,221.93,18.65999999]
[1760002817382,0.66,221.95,221.93,18.65999999]
[1760002817581,14.18,222.01,221.93,23.16592366]
[1760002817582,0.66,221.99,221.93,23.16592366]
[1760002817771,0.66,221.99,221.87,33.12]
[1760002817772,0.66,221.99,221.96,18.65999999]
[1760002818176,4.5045045,222.0,221.96,18.65999999]
[1760002818899,5.16429648,222.02,221.99,18.65999999]
[1760002819262,0.66,222.02,221.99,18.65999999]
[1760002820162,36.49842282,222.05,221.99,18.65999999]
[1760002820361,33.78,222.05,221.99,18.65999999]
[1760002820568,10.87647521,222.09,222.01,18.65999999]
[1760002820764,0.66,222.07,222.01,18.65999999]
[1760002821005,16.04,222.08,222.03,18.65999999]
[1760002821171,0.66,222.07,222.03,18.65999999]
[1760002821488,0.66,222.06,222.03,18.65999999]
[1760002822286,0.66,222.05,221.99,18.65999999]
[1760002822466,3.37842282,222.02,221.97,18.65999999]
[1760002822671,0.66,222.01,221.97,18.65999999]
[1760002822889,0.66,222.0,221.97,18.65999999]
[1760002823194,5.16461997,222.0,221.97,18.65999999]